bitfinex/quotes_BTCUSD_20241116
["timestamp","ask_amount","ask_price","bid_price","bid_amount"]
[1731798598980,0.08856917,90590.0,90589.0,0.120388]
[1731798601850,0.08856917,90590.0,90589.0,0.24659737]
[1731798603474,0.08856917,90590.0,90589.0,0.115388]
[1731798603682,0.08856917,90590.0,90589.0,0.24159737]
[1731798603903,0.08856917,90590.0,90589.0,0.110388]
[1731798603904,0.19763172,90590.0,90589.0,0.110388]
[1731798604334,0.20339919,90590.0,90589.0,0.110388]
[1731798605648,0.20339919,90590.0,90589.0,0.1112445]
[1731798605915,0.09604964,90590.0,90589.0,0.1112445]
[1731798606351,0.09028217,90590.0,90589.0,0.1112445]
[1731798606569,0.19934472,90590.0,90589.0,0.1112445]
[1731798606781,0.19934472,90590.0,90589.0,0.0008565]
[1731798606782,0.28051219,90590.0,90589.0,0.0008565]
[1731798607236,0.28251219,90590.0,90589.0,0.0008565]
[1731798608074,0.28051219,90590.0,90589.0,0.1112445]
[1731798608501,0.41389919,90590.0,90589.0,0.0008565]
[1731798608918,0.41589919,90590.0,90589.0,0.0008565]
[1731798610468,0.41389919,90590.0,90589.0,0.0008565]
[1731798610716,0.28051219,90590.0,90589.0,0.1112445]
[1731798610932,0.28051219,90590.0,90589.0,0.0008565]
[1731798611155,0.41589919,90590.0,90589.0,0.0008565]
[1731798612016,0.42089919,90590.0,90589.0,0.0008565]
[1731798612526,0.42589919,90590.0,90589.0,0.0008565]
[1731798612770,0.42389919,90590.0,90589.0,0.0008565]
[1731798614816,0.22811219,90590.0,90589.0,0.0008565]
[1731798615055,0.23011219,90590.0,90589.0,0.0008565]
[1731798615281,0.34049919,90590.0,90589.0,0.0008565]
[1731798615710,0.23011219,90590.0,90589.0,0.0008565]
[1731798616859,0.20511219,90590.0,90589.0,0.1112445]
[1731798618028,0.20511219,90590.0,90589.0,0.23745387]
[1731798618029,0.09604964,90590.0,90589.0,0.23745387]
[1731798618478,0.09028217,90590.0,90589.0,0.23745387]
[1731798619153,0.09028217,90590.0,90589.0,0.1212445]
[1731798621890,0.09028217,90590.0,90589.0,0.123452]
[1731798622102,0.09028217,90590.0,90589.0,0.1968445]
[1731798622314,0.09028217,90590.0,90589.0,0.23338171]
[1731798624691,0.09028217,90590.0,90589.0,0.22576099]
[1731798627932,0.19934472,90590.0,90589.0,0.14016099]
[1731798628406,0.20544618,90590.0,90589.0,0.14016099]
[1731798628832,0.20544618,90590.0,90589.0,0.10362378]
[1731798629258,0.09638363,90590.0,90589.0,0.10362378]
[1731798629473,0.09638363,90590.0,90589.0,0.10448028]
[1731798629681,0.09028217,90590.0,90589.0,0.18008028]
[1731798634371,0.09028217,90590.0,90589.0,0.18508028]
[1731798636156,0.09028217,90590.0,90589.0,0.18728778]
[1731798636372,0.09028217,90590.0,90589.0,0.18508028]
[1731798638602,0.09028217,90590.0,90589.0,0.22919828]
[1731798639069,0.09028217,90590.0,90589.0,0.23419828]
[1731798639278,0.09028217,90590.0,90589.0,0.23640578]
[1731798639501,0.09028217,90590.0,90589.0,0.23419828]
[1731798640808,0.0017132,90601.0,90600.0,0.005]
[1731798641032,0.10120396,90601.0,90600.0,0.115375]
[1731798641247,0.09674727,90601.0,90600.0,0.24158437]
[1731798641458,0.09674727,90601.0,90600.0,0.24658437]
[1731798644562,0.09674727,90601.0,90600.0,0.24158437]
[1731798644779,0.09674727,90601.0,90600.0,0.24658437]
[1731798647112,0.09674727,90601.0,90600.0,0.110375]
[1731798648458,0.20580982,90601.0,90600.0,0.110375]
[1731798648914,0.21194647,90601.0,90589.0,0.0449745]
[1731798649152,0.23396255,90600.0,90589.0,0.0008565]
[1731798649424,0.002,90595.0,90594.0,0.110381]
[1731798649675,0.19728838,90595.0,90593.0,0.110383]
[1731798649900,0.11106255,90594.0,90593.0,0.110383]
[1731798650109,0.20339194,90594.0,90593.0,0.110383]
[1731798650579,0.20339194,90594.0,90589.0,0.2216335]
[1731798650580,0.002,90590.0,90589.0,0.3320215]
[1731798650833,0.11106255,90590.0,90589.0,0.3320215]
[1731798651064,0.20335802,90590.0,90589.0,0.3320215]
[1731798651301,0.30215802,90590.0,90589.0,0.0008565]
[1731798651511,0.46164502,90590.0,90589.0,0.0008565]
[1731798652344,0.35125802,90590.0,90589.0,0.0008565]
[1731798652986,0.46164502,90590.0,90589.0,0.0008565]
[1731798653208,0.32825802,90590.0,90589.0,0.0008565]
[1731798653442,0.32825802,90590.0,90589.0,0.1112445]
[1731798653443,0.20135802,90590.0,90589.0,0.1112445]
[1731798654773,0.20135802,90590.0,90589.0,0.0008565]
[1731798654990,0.33474502,90590.0,90589.0,0.0008565]
[1731798655242,0.45964502,90590.0,90589.0,0.0008565]
[1731798655459,0.46464502,90590.0,90589.0,0.0008565]
[1731798658425,0.45964502,90590.0,90589.0,0.0008565]
[1731798660981,0.46964502,90590.0,90589.0,0.0008565]
[1731798661436,0.56413412,90590.0,90589.0,0.0008565]
[1731798661654,0.56413412,90590.0,90579.0,0.0008566]
[1731798661655,0.267799,90580.0,90579.0,0.0008566]
[1731798661885,0.60007928,90580.0,90579.0,0.0008566]
[1731798662118,1.16464068,90580.0,90579.0,0.0008566]
[1731798662336,0.75312432,90580.0,90579.0,0.0008566]
[1731798663013,0.60395997,90580.0,90579.0,0.0008566]
[1731798663242,0.75305682,90580.0,90579.0,0.0008566]
[1731798663450,0.60595997,90580.0,90579.0,0.0008566]
[1731798663686,0.57781292,90580.0,90579.0,0.0008566]
[1731798663896,0.47386991,90580.0,90579.0,0.0008566]
[1731798665068,0.60007928,90580.0,90579.0,0.0008566]
[1731798665295,0.13542,90563.0,90562.0,0.16578524]
[1731798665501,0.22926289,90563.0,90562.0,0.16578524]
[1731798665712,0.002,90559.0,90555.0,0.110429]
[1731798665929,0.002,90553.0,90552.0,0.3313]
[1731798666146,0.11106255,90553.0,90552.0,0.3313]
[1731798666357,0.20626289,90553.0,90552.0,0.3313]
[1731798667885,0.20626289,90553.0,90552.0,0.110433]
[1731798668989,0.20426289,90553.0,90552.0,0.110433]
[1731798670084,0.09520034,90553.0,90552.0,0.31734237]
[1731798670302,0.09520034,90553.0,90552.0,0.237233]
[1731798670529,0.09392817,90563.0,90562.0,0.110421]
[1731798670785,0.16778524,90564.0,90563.0,0.11042]
[1731798671290,0.21015483,90564.0,90563.0,0.11042]
[1731798671749,0.20815483,90564.0,90563.0,0.11042]
[1731798673672,0.09909228,90564.0,90563.0,0.11042]
[1731798674376,0.002,90574.0,90565.0,0.220833]
[1731798674637,0.16578524,90573.0,90569.0,0.12620937]
[1731798674877,0.16578524,90573.0,90572.0,0.110409]
[1731798675107,0.0930793,90573.0,90572.0,0.110409]
[1731798675349,0.002,90576.0,90575.0,0.110405]
[1731798675577,0.002,90577.0,90576.0,0.110404]
[1731798675818,0.0950793,90577.0,90576.0,0.110404]
[1731798676030,0.0930793,90577.0,90576.0,0.110404]
[1731798677007,0.10906255,90585.0,90581.0,0.220795]
[1731798677246,0.10906255,90585.0,90584.0,0.110394]
[1731798677474,0.2060909,90585.0,90584.0,0.110394]
[1731798679110,0.21094153,90585.0,90584.0,0.110394]
[1731798680519,0.10187898,90585.0,90584.0,0.110394]
[1731798680733,0.10187898,90585.0,90584.0,0.156494]
[1731798680967,0.09702835,90585.0,90584.0,0.156494]
[1731798682116,0.0017132,90590.0,90586.0,0.220782]
[1731798682352,0.0017132,90590.0,90589.0,0.110388]
[1731798683448,0.11077575,90590.0,90589.0,0.110388]
[1731798683679,0.20397538,90590.0,90589.0,0.110388]
[1731798683893,0.20893879,90590.0,90589.0,0.110388]
[1731798685731,0.21093879,90590.0,90589.0,0.110388]
[1731798685967,0.002,90588.0,90577.0,0.22246032]
[1731798686196,0.002,90588.0,90587.0,0.110391]
[1731798686878,0.11106255,90588.0,90587.0,0.110391]
[1731798687528,0.20631766,90588.0,90587.0,0.1112476]
[1731798688432,0.20431766,90588.0,90587.0,0.1112476]
[1731798689748,0.20631766,90588.0,90587.0,0.1112476]
[1731798689998,0.20431766,90588.0,90587.0,0.1112476]
[1731798690213,0.20631766,90588.0,90587.0,0.1112476]
[1731798690638,0.20631766,90588.0,90587.0,0.0008566]
[1731798691091,0.20631766,90588.0,90587.0,0.1112476]
[1731798693319,0.20431766,90588.0,90587.0,0.1112476]
[1731798693756,0.20631766,90588.0,90587.0,0.1112476]
[1731798695139,0.20431766,90588.0,90587.0,0.1112476]
[1731798696351,0.20431766,90588.0,90587.0,0.1911476]
[1731798697279,0.09525511,90588.0,90587.0,0.1911476]
[1731798697740,0.09549738,90588.0,90587.0,0.0807566]
[1731798697965,0.09549738,90588.0,90587.0,0.3015366]
[1731798698188,0.0017132,90590.0,90588.0,0.110389]
[1731798698411,0.0017132,90590.0,90589.0,0.110388]
[1731798699357,0.09978322,90590.0,90589.0,0.110388]
[1731798699594,0.0017132,90590.0,90589.0,0.110388]
[1731798699822,0.09978322,90590.0,90589.0,0.110388]
[1731798707318,0.09978322,90590.0,90589.0,0.237688]
[1731798714468,0.09978322,90590.0,90589.0,0.36389737]
[1731798719327,0.09978322,90590.0,90589.0,0.192288]
[1731798720433,0.09978322,90590.0,90589.0,0.110388]
[1731798721384,0.20884577,90590.0,90589.0,0.110388]
[1731798721840,0.29144577,90590.0,90589.0,0.110388]
[1731798722079,0.296542,90590.0,90589.0,0.110388]
[1731798722554,0.296542,90590.0,90587.0,0.0008566]
[1731798722778,0.10906255,90589.0,90587.0,0.0008566]
[1731798722994,0.00706358,90588.0,90587.0,0.1112466]
[1731798723204,0.21300084,90588.0,90587.0,0.1112466]
[1731798725259,0.21300084,90588.0,90587.0,0.0008566]
[1731798725946,0.21300084,90588.0,90587.0,0.1112476]
[1731798727220,0.21100084,90588.0,90587.0,0.1112476]
[1731798727439,0.10193829,90588.0,90587.0,0.1112476]
[1731798727882,0.09687471,90588.0,90587.0,0.1112476]
[1731798728117,0.09431801,90589.0,90588.0,0.110389]
[1731798728326,0.09431801,90589.0,90587.0,0.12706597]
[1731798728550,0.09431801,90589.0,90588.0,0.110389]
[1731798734397,0.09431801,90589.0,90588.0,0.14708365]
[1731798741626,0.09431801,90589.0,90588.0,0.14929138]
[1731798741883,0.09431801,90589.0,90588.0,0.22388365]
[1731798742822,0.09431801,90589.0,90588.0,0.35009302]
[1731798745070,0.09431801,90589.0,90588.0,0.27329302]
[1731798745321,0.09431801,90589.0,90588.0,0.110389]
[1731798748051,0.09603181,90589.0,90588.0,0.110389]
[1731798750234,0.10087744,90589.0,90588.0,0.110389]
[1731798756955,0.10087744,90589.0,90588.0,0.19321631]
[1731798761594,0.10087744,90589.0,90588.0,0.27604362]
[1731798761819,0.10087744,90589.0,90588.0,0.32364362]
[1731798762750,0.10087744,90589.0,90588.0,0.41034362]
[1731798764773,0.10087744,90589.0,90588.0,0.50935228]
[1731798765037,0.10087744,90589.0,90588.0,0.41034362]
[1731798765244,0.09905078,90589.0,90588.0,0.41034362]
[1731798765456,0.09905078,90589.0,90588.0,0.50935063]
[1731798765876,0.09905078,90589.0,90588.0,0.50934148]
[1731798766377,0.09905078,90589.0,90588.0,0.41034362]
[1731798766601,0.09905078,90589.0,90588.0,0.50934148]
[1731798767281,0.09905078,90589.0,90588.0,0.41034362]
[1731798770803,0.09905078,90589.0,90588.0,0.50934417]
[1731798771231,0.09905078,90589.0,90588.0,0.41034362]
[1731798771691,0.09905078,90589.0,90588.0,0.50935473]
[1731798771897,0.09905078,90589.0,90588.0,0.41034362]
[1731798772119,0.09905078,90589.0,90588.0,0.41120022]
[1731798772346,0.09905078,90589.0,90588.0,0.51021133]
[1731798772347,0.10076398,90589.0,90588.0,0.51021133]
[1731798773959,0.10076398,90589.0,90588.0,0.41120022]
[1731798774610,0.10076398,90589.0,90588.0,0.51021133]
[1731798775271,0.10076398,90589.0,90588.0,0.55968584]
[1731798775499,0.10076398,90589.0,90588.0,0.51022434]
[1731798775728,0.10076398,90589.0,90588.0,0.19407291]
[1731798776171,0.10076398,90589.0,90588.0,0.19907291]
[1731798776634,0.10076398,90589.0,90588.0,0.19407291]
[1731798777303,0.10076398,90589.0,90588.0,0.19907291]
[1731798777554,0.10076398,90589.0,90588.0,0.19407291]
[1731798778235,0.10076398,90589.0,90588.0,0.19907291]
[1731798778461,0.10076398,90589.0,90588.0,0.19407291]
[1731798778899,0.10076398,90589.0,90588.0,0.1112456]
[1731798779368,0.10076398,90589.0,90588.0,0.19407291]
[1731798780282,0.09999847,90589.0,90588.0,0.19407291]
[1731798780775,0.09999847,90589.0,90588.0,0.1112456]
[1731798780988,0.09999847,90589.0,90588.0,0.19407291]
[1731798782300,0.09999847,90589.0,90588.0,0.1112456]
[1731798782508,0.09999847,90589.0,90588.0,0.19407291]
[1731798782716,0.09999847,90589.0,90588.0,0.1112456]
[1731798782926,0.20906102,90589.0,90588.0,0.1112456]
[1731798783131,0.25476102,90589.0,90588.0,0.1112456]
[1731798783341,0.25676102,90589.0,90588.0,0.1112456]
[1731798783580,0.25476102,90589.0,90588.0,0.1112456]
[1731798784293,0.33786102,90589.0,90588.0,0.1112456]
[1731798786525,0.20906102,90589.0,90588.0,0.1112456]
[1731798787409,0.09999847,90589.0,90588.0,0.1112456]
[1731798787884,0.09999847,90589.0,90588.0,0.19407291]
[1731798788137,0.09999847,90589.0,90588.0,0.1112456]
[1731798788561,0.09999847,90589.0,90588.0,0.19407291]
[1731798789950,0.09999847,90589.0,90588.0,0.1112456]
[1731798790216,0.20906102,90589.0,90588.0,0.1112456]
[1731798790430,0.20906102,90589.0,90588.0,0.19407291]
[1731798793586,0.20906102,90589.0,90588.0,0.1112456]
[1731798795176,0.18744785,90589.0,90588.0,0.1112456]
[1731798795889,0.18916105,90589.0,90588.0,0.1112456]
[1731798796965,0.18916105,90589.0,90586.0,0.26044358]
[1731798797190,0.10906255,90588.0,90587.0,0.110391]
[1731798797408,0.16050049,90588.0,90587.0,0.110391]
[1731798797877,0.16050049,90588.0,90572.0,0.225816]
[1731798797878,0.18350049,90588.0,90561.0,0.005]
[1731798798126,0.18350049,90588.0,90577.0,0.44161]
[1731798798127,0.002,90582.0,90577.0,0.44161]
[1731798798341,0.023,90587.0,90586.0,0.110392]
[1731798798568,0.023,90587.0,90566.0,0.005]
[1731798798569,0.07643794,90587.0,90581.0,0.220796]
[1731798798802,0.025,90587.0,90585.0,0.110392]
[1731798799016,0.025,90587.0,90585.0,0.110393]
[1731798799235,0.025,90584.0,90583.0,0.110395]
[1731798800165,0.002,90582.0,90581.0,0.331194]
[1731798800384,0.05610656,90582.0,90581.0,0.331194]
[1731798800638,0.16516911,90582.0,90581.0,0.331194]
[1731798800859,0.217898,90581.0,90564.0,0.220837]
[1731798801078,0.42664292,90581.0,90568.0,0.110413]
[1731798801294,0.42664292,90581.0,90565.0,0.220835]
[1731798801509,0.42664292,90581.0,90570.0,0.110411]
[1731798801749,0.42664292,90581.0,90572.0,0.110408]
[1731798801988,0.42664292,90581.0,90576.0,0.110403]
[1731798802210,0.31624492,90581.0,90580.0,0.11205434]
[1731798802429,0.18794492,90581.0,90580.0,0.11205434]
[1731798802910,0.16316911,90581.0,90580.0,0.11205434]
[1731798803623,0.16306918,90581.0,90580.0,0.11205434]
[1731798806092,0.16306918,90581.0,90580.0,0.00165534]
[1731798806093,0.16484499,90581.0,90580.0,0.00165534]
[1731798806334,0.37864299,90581.0,90580.0,0.00165534]
[1731798806556,0.26824499,90581.0,90580.0,0.00165534]
[1731798807506,0.37864299,90581.0,90580.0,0.00251194]
[1731798807963,0.38864299,90581.0,90580.0,0.00251194]
[1731798808209,0.43624299,90581.0,90580.0,0.00251194]
[1731798810283,0.35924299,90581.0,90580.0,0.00251194]
[1731798819599,0.35924299,90581.0,90580.0,0.00195694]
[1731798825286,0.43611103,90581.0,90580.0,0.00195694]
[1731798826957,0.51902449,90581.0,90580.0,0.00195694]
[1731798827185,0.61710206,90581.0,90580.0,0.00195694]
[1731798827674,0.51902449,90581.0,90580.0,0.00195694]
[1731798830215,0.51724868,90581.0,90580.0,0.00195694]
[1731798830434,0.51902449,90581.0,90580.0,0.00195694]
[1731798831385,0.52073769,90581.0,90580.0,0.00195694]
[1731798833213,0.50448937,90581.0,90580.0,0.00195694]
[1731798834097,0.29357591,90581.0,90580.0,0.00195694]
[1731798837519,0.37648937,90581.0,90580.0,0.00195694]
[1731798837990,0.28857591,90581.0,90580.0,0.00195694]
[1731798840354,0.15517791,90581.0,90580.0,0.00195694]
[1731798840558,0.26557591,90581.0,90580.0,0.00195694]
[1731798842199,0.27057591,90581.0,90580.0,0.00195694]
[1731798842395,0.3919091,90581.0,90580.0,0.00195694]
[1731798842603,0.78454939,90581.0,90580.0,0.00195694]
[1731798842804,0.78453958,90581.0,90580.0,0.00195694]
[1731798843007,0.98106895,90581.0,90580.0,0.00195694]
[1731798843462,0.78453958,90581.0,90580.0,0.00195694]
[1731798844538,1.0302013,90581.0,90580.0,0.00195694]
[1731798844952,1.02842549,90581.0,90580.0,0.00195694]
[1731798845164,0.78276377,90581.0,90580.0,0.00195694]
[1731798845367,0.82076587,90581.0,90580.0,0.00195694]
[1731798845586,0.81876587,90581.0,90580.0,0.00195694]
[1731798845858,0.78453958,90581.0,90580.0,0.00195694]
[1731798846298,0.81875951,90581.0,90580.0,0.00195694]
[1731798846716,0.78453958,90581.0,90580.0,0.00195694]
[1731798846933,0.65663958,90581.0,90580.0,0.00195694]
[1731798847160,0.85348364,90581.0,90580.0,0.00195694]
[1731798847626,0.65663958,90581.0,90580.0,0.00195694]
[1731798849023,0.65163958,90581.0,90580.0,0.00195694]
[1731798849472,0.85355683,90581.0,90580.0,0.00195694]
[1731798849769,0.28857591,90581.0,90580.0,0.00195694]
[1731798850242,0.65202988,90581.0,90580.0,0.00195694]
[1731798850735,0.84910973,90581.0,90580.0,0.00195694]
[1731798851582,0.65213422,90581.0,90580.0,0.00195694]
[1731798852907,0.65213422,90581.0,90580.0,0.00181194]
[1731798854544,0.005,90575.0,90561.0,0.04370491]
[1731798854775,0.10906255,90574.0,90573.0,0.234808]
[1731798855014,0.10906255,90574.0,90573.0,0.455624]
[1731798855015,0.14809079,90574.0,90573.0,0.455624]
[1731798855246,0.03902824,90574.0,90573.0,0.455624]
[1731798856282,0.00348901,90581.0,90579.0,0.1104]
[1731798856368,0.00348901,90581.0,90580.0,0.110399]
[1731798856618,0.15148147,90581.0,90580.0,0.110399]
[1731798856812,0.15148147,90581.0,90579.0,0.1104]
[1731798857059,0.00177581,90578.0,90577.0,0.110403]
[1731798857288,0.14976827,90578.0,90575.0,0.1015785]
[1731798857512,0.10906255,90577.0,90574.0,0.220813]
[1731798857946,0.10906255,90577.0,90576.0,0.110404]
[1731798858153,0.14890748,90577.0,90576.0,0.110404]
[1731798860577,0.15068329,90577.0,90576.0,0.110404]
[1731798860791,0.14890748,90577.0,90576.0,0.110404]
[1731798861032,0.03984493,90577.0,90576.0,0.110404]
[1731798861241,0.03984493,90577.0,90576.0,0.186304]
[1731798861497,0.03,90579.0,90577.0,0.110403]
[1731798861725,0.03,90579.0,90578.0,0.110402]
[1731798861932,0.06956968,90579.0,90578.0,0.110402]
[1731798862444,0.06956968,90579.0,90578.0,0.237802]
[1731798863941,0.03956968,90579.0,90578.0,0.237802]
[1731798864166,0.03951592,90580.0,90579.0,0.1104]
[1731798864386,0.0017132,90581.0,90580.0,0.242799]
[1731798864600,0.04122912,90581.0,90580.0,0.237799]
[1731798864827,0.04122912,90581.0,90580.0,0.242799]
[1731798865054,0.04122912,90581.0,90580.0,0.36402019]
[1731798865310,0.04122912,90581.0,90580.0,0.36902019]
[1731798865561,0.04122912,90581.0,90580.0,0.36402019]
[1731798866935,0.04122912,90581.0,90580.0,0.36902019]
[1731798867161,0.04122912,90581.0,90580.0,0.36402019]
[1731798868040,0.04122912,90581.0,90574.0,0.1112626]
[1731798868041,0.15029167,90581.0,90574.0,0.1112626]
[1731798868253,0.00177581,90575.0,90574.0,0.0008566]
[1731798868688,0.00177581,90575.0,90574.0,0.1112626]
[1731798869395,0.04141143,90575.0,90574.0,0.1112626]
[1731798870314,0.03963562,90575.0,90574.0,0.1112626]
[1731798870794,0.03963562,90579.0,90578.0,0.110402]
[1731798871021,0.10906255,90579.0,90578.0,0.110402]
[1731798871244,0.14741381,90579.0,90578.0,0.110402]
[1731798871453,0.25781481,90579.0,90574.0,0.0008566]
[1731798871693,0.10906255,90578.0,90574.0,0.0008566]
[1731798871919,0.10906255,90578.0,90577.0,0.110403]
[1731798872153,0.14741381,90578.0,90577.0,0.110403]
[1731798872577,0.14741381,90578.0,90574.0,0.0008566]
[1731798872804,0.21946455,90578.0,90574.0,0.0008566]
[1731798873030,0.10906255,90578.0,90574.0,0.0008566]
[1731798873273,0.110405,90575.0,90574.0,0.0008566]
[1731798873495,0.24457486,90575.0,90574.0,0.0008566]
[1731798875043,0.48209605,90575.0,90574.0,0.0008566]
[1731798875282,0.35587486,90575.0,90574.0,0.0008566]
[1731798877313,0.45414734,90575.0,90574.0,0.0008566]
[1731798877969,0.35587486,90575.0,90574.0,0.0008566]
[1731798878490,0.45414734,90575.0,90574.0,0.0008566]
[1731798878726,0.35587486,90575.0,90574.0,0.0008566]
[1731798879217,0.45413688,90575.0,90574.0,0.0008566]
[1731798879449,0.45413688,90575.0,90563.0,0.0008566]
[1731798879450,0.220828,90568.0,90548.0,0.220877]
[1731798879683,0.005,90569.0,90548.0,0.220877]
[1731798879684,0.10906255,90567.0,90551.0,0.16578524]
[1731798879915,0.110432,90553.0,90551.0,0.16578524]
[1731798880132,0.110427,90558.0,90547.0,0.110438]
[1731798880347,0.10906255,90558.0,90548.0,0.110438]
[1731798880576,0.110427,90557.0,90548.0,0.110438]
[1731798880800,0.10906255,90558.0,90548.0,0.110438]
[1731798881246,0.10906255,90558.0,90543.0,0.220889]
[1731798881496,0.21948855,90558.0,90548.0,0.220876]
[1731798881712,0.10906255,90558.0,90548.0,0.220876]
[1731798881930,0.110427,90557.0,90549.0,0.110437]
[1731798882422,0.10906255,90558.0,90549.0,0.110437]
[1731798882876,0.10906255,90558.0,90542.0,0.30988127]
[1731798882877,0.10906255,90558.0,90542.0,0.0454]
[1731798883099,0.110439,90547.0,90542.0,0.0454]
[1731798883311,0.02530643,90547.0,90542.0,0.0454]
[1731798885098,0.110439,90548.0,90542.0,0.0454]
[1731798885353,0.10906255,90557.0,90542.0,0.0454]
[1731798885576,0.10906255,90557.0,90523.0,0.0017128]
[1731798885577,0.11045,90538.0,90537.0,0.0773]
[1731798885803,0.13664211,90538.0,90537.0,0.0773]
[1731798886032,0.13525466,90538.0,90533.0,0.0459]
[1731798886248,0.220898,90540.0,90531.0,0.0773]
[1731798886249,0.110454,90536.0,90531.0,0.0773]
[1731798886889,0.10906255,90537.0,90531.0,0.0773]
[1731798887111,0.21951555,90537.0,90531.0,0.0773]
[1731798887331,0.110453,90536.0,90531.0,0.0773]
[1731798887549,0.110456,90534.0,90527.0,0.220927]
[1731798887764,0.110453,90536.0,90527.0,0.220928]
[1731798887989,0.110455,90535.0,90529.0,0.11046]
[1731798888449,0.21951755,90534.0,90526.0,0.0459]
[1731798888661,0.110458,90532.0,90526.0,0.0459]
[1731798889423,0.10906255,90534.0,90525.0,0.0764]
[1731798889830,0.110457,90533.0,90525.0,0.0764]
[1731798890044,0.21951955,90533.0,90525.0,0.0764]
[1731798890257,0.110462,90529.0,90525.0,0.0764]
[1731798890682,0.10906255,90533.0,90525.0,0.0764]
[1731798890886,0.110458,90532.0,90525.0,0.0764]
[1731798891100,0.10906255,90533.0,90525.0,0.0764]
[1731798891310,0.21951955,90533.0,90525.0,0.0764]
[1731798891762,0.10906255,90533.0,90525.0,0.0764]
[1731798891989,0.10906255,90533.0,90525.0,0.186866]
[1731798892258,0.10906255,90533.0,90525.0,0.0764]
[1731798892472,0.10906255,90533.0,90525.0,0.186865]
[1731798892690,0.16578524,90540.0,90529.0,0.110461]
[1731798892901,0.10906255,90539.0,90529.0,0.110461]
[1731798893149,0.10906255,90539.0,90525.0,0.0764]
[1731798893388,0.10906255,90539.0,90529.0,0.110461]
[1731798893823,0.10906255,90539.0,90527.0,0.331392]
[1731798894078,0.10906255,90539.0,90533.0,0.110455]
[1731798894321,0.10906255,90539.0,90532.0,0.110457]
[1731798894778,0.10906255,90539.0,90528.0,0.220926]
[1731798894779,0.10906255,90539.0,90529.0,0.331384]
[1731798894989,0.10906255,90539.0,90529.0,0.220923]
[1731798895197,0.10906255,90539.0,90530.0,0.11046]
[1731798896074,0.16578524,90538.0,90530.0,0.11046]
[1731798896285,0.220905,90537.0,90526.0,0.110465]
[1731798896493,0.10906255,90539.0,90526.0,0.110465]
[1731798896704,0.110452,90537.0,90527.0,0.110463]
[1731798897174,0.10906255,90539.0,90525.0,0.0764]
[1731798897431,0.110455,90534.0,90525.0,0.186866]
[1731798897655,0.10906255,90533.0,90525.0,0.186866]
[1731798898826,0.10906255,90533.0,90525.0,0.0764]
[1731798899771,0.21951955,90533.0,90525.0,0.0764]
[1731798899953,0.110458,90532.0,90523.0,0.0017128]
[1731798900216,0.10906255,90533.0,90523.0,0.0017128]
[1731798901190,0.10906255,90533.0,90524.0,0.220935]
[1731798901374,0.10906255,90533.0,90526.0,0.110464]
[1731798902056,0.10906255,90533.0,90525.0,0.331398]
[1731798902289,0.10906255,90533.0,90523.0,0.0017128]
[1731798902290,0.110467,90524.0,90523.0,0.0017128]
[1731798902522,0.27344834,90524.0,90523.0,0.0017128]
[1731798902723,0.40664834,90524.0,90523.0,0.0017128]
[1731798902937,0.4117238,90524.0,90523.0,0.0017128]
[1731798904132,0.3665238,90524.0,90523.0,0.0017128]
[1731798906437,0.2835238,90524.0,90523.0,0.0017128]
[1731798907413,0.115491,90505.0,90504.0,0.00165648]
[1731798907738,0.25074752,90505.0,90504.0,0.00165648]
[1731798910338,0.27874752,90505.0,90504.0,0.00165648]
[1731798913800,0.27874752,90505.0,90504.0,0.00251348]
[1731798914488,0.27852306,90505.0,90504.0,0.00251348]
[1731798915144,0.20152306,90505.0,90504.0,0.00251348]
[1731798915401,0.16325652,90505.0,90504.0,0.00251348]
[1731798915659,0.27374752,90505.0,90504.0,0.00251348]
[1731798915911,0.39996871,90505.0,90504.0,0.00251348]
[1731798916132,0.76052355,90505.0,90504.0,0.00251348]
[1731798916368,0.138496,90501.0,90500.0,0.001713]
[1731798916598,0.27352016,90501.0,90500.0,0.001713]
[1731798917084,0.42001357,90501.0,90500.0,0.001713]
[1731798917313,0.27352016,90501.0,90500.0,0.001713]
[1731798918682,0.63405238,90501.0,90500.0,0.001713]
[1731798919140,0.27352016,90501.0,90500.0,0.001713]
[1731798919363,0.63407992,90501.0,90500.0,0.001713]
[1731798920517,0.63409645,90501.0,90500.0,0.001713]
[1731798920975,0.82944735,90501.0,90500.0,0.001713]
[1731798921215,0.63409645,90501.0,90500.0,0.001713]
[1731798922112,0.63609645,90501.0,90500.0,0.001713]
[1731798922323,0.63609645,90501.0,90473.0,0.03]
[1731798922324,0.110528,90474.0,90473.0,0.03]
[1731798922559,0.24522247,90474.0,90473.0,0.03]
[1731798922796,0.24522247,90474.0,90473.0,0.0759]
[1731798923066,0.24522247,90474.0,90473.0,0.0459]
[1731798923993,0.13469447,90474.0,90473.0,0.123]
[1731798924214,0.02563192,90474.0,90473.0,0.23353]
[1731798924869,0.110522,90480.0,90475.0,0.123]
[1731798925101,0.10906255,90479.0,90476.0,0.123]
[1731798925323,0.10906255,90479.0,90472.0,0.221062]
[1731798925529,0.26347049,90497.0,90468.0,0.35229219]
[1731798925530,0.005,90495.0,90482.0,0.123]
[1731798925749,0.10906255,90484.0,90474.0,0.123]
[1731798925967,0.10906255,90484.0,90473.0,0.005]
[1731798925968,0.10906255,90484.0,90477.0,0.0771]
[1731798926203,0.10906255,90484.0,90479.0,0.0771]
[1731798926416,0.11052,90481.0,90480.0,0.0459]
[1731798926641,0.24621578,90481.0,90480.0,0.123]
[1731798930331,0.13569578,90481.0,90480.0,0.123]
[1731798930551,0.25121578,90481.0,90480.0,0.123]
[1731798932833,0.13569578,90481.0,90480.0,0.123]
[1731798933065,0.13569578,90481.0,90480.0,0.233521]
[1731798933346,0.13569578,90481.0,90480.0,0.123]
[1731798933573,0.13569578,90481.0,90480.0,0.233521]
[1731798937940,0.13569578,90481.0,90480.0,0.1238575]
[1731798938174,0.13569578,90481.0,90480.0,0.2343785]
[1731798938175,0.13741078,90481.0,90480.0,0.2343785]
[1731798941476,0.02834823,90481.0,90480.0,0.2343785]
[1731798942609,0.13741078,90481.0,90480.0,0.1238575]
[1731798942824,0.24793078,90481.0,90480.0,0.1238575]
[1731798943032,0.13741078,90481.0,90480.0,0.1238575]
[1731798943923,0.13741078,90481.0,90480.0,0.2343785]
[1731798944136,0.02834823,90481.0,90480.0,0.2343785]
[1731798944791,0.02834823,90481.0,90480.0,0.2393785]
[1731798945264,0.02582632,90481.0,90480.0,0.1163785]
[1731798945728,0.02582632,90481.0,90480.0,0.2438785]
[1731798946273,0.16578524,90496.0,90495.0,0.238003]
[1731798946498,0.19161156,90496.0,90495.0,0.238003]
[1731798946716,0.02582632,90496.0,90495.0,0.238003]
[1731798946939,0.0017146,90505.0,90494.0,0.005]